[Event "4NCL 2019-20"]
[Site "Daventry"]
[Date "2020.02.08"]
[Round "5"]
[White "Carleton, John J"]
[Black "Cox, John J"]
[Result "0-1"]
[ECO "E11"]
[WhiteElo "2238"]
[BlackElo "2308"]
[Annotator "RC"]
[PlyCount "60"]
[EventDate "2020.01.11"]
[EventCountry "ENG"]
[SourceTitle "playchess.com"]
[Source "ChessBase"]
[SourceQuality "1"]
[TimeControl "40/6000:3000+30"]

1. d4 {[%emt 0:00:00]} e6 {[%emt 0:01:46]} 2. c4 {[%emt 0:00:41]} Bb4+ {[%emt 0:00:00]} 3. Bd2 {[%emt 0:01:28]} Bxd2+ {[%emt 0:00:00]} 4. Qxd2 {[%emt 0:01:32]} d5 {[%emt 0:00:00]} 5. Nc3 {[%emt 0:02:23]} Nf6 {[%emt 0:00:39]} 6. e3 {[%emt 0:01:21]} O-O {[%emt 0:00:00]} 7. Nf3 {[%emt 0:01:39]} Qe7 {[%emt 0:00:00]} 8. Rc1 {[%emt 0:05:01]} Rd8 {[%emt 0:01:17]} 9. cxd5 exd5 {[%emt 0:14:47]} 10. Bd3 {[%emt 0:18:23]} c6 {[%emt 0:00:00]} 11. Ne5 {[%emt 0:00:00]} Ng4 {[%emt 0:00:00]} 12. f4 {[%emt 0:00:00]} Nxe5 {[%emt 0:00:00]} 13. fxe5 {[%emt 0:00:00]} f6 {[%emt 0:00:00]} 14. exf6 {[%emt 0:00:00]} Qxf6 {[%emt 0:00:00]} 15. Rf1 {[%emt 0:00:00]} Qh4+ {[%emt 0:00:00]} 16. g3 {[%emt 0:00:00]} Qe7 {[%emt 0:00:00]} 17. Rf4 {[%emt 0:00:00]} g5 {[%emt 0:00:00]} 18. Rf2 {[%emt 0:00:00]} Bg4 {[%emt 0:00:00]} 19. e4 {[%emt 0:00:00]} Nd7 {[%emt 0:00:00]} 20. Kf1 {[%emt 0:00:00]} Rf8 {[%emt 0:00:00]} 21. Kg1 {[%emt 0:00:00]} Rxf2 {[%emt 0:00:00]} 22. Qxf2 {[%emt 0:00:00]} Rf8 {[%emt 0:00:00]} 23. Qd2 {[%emt 0:00:00]} Qg7 {[%emt 0:00:00]} 24. e5 {[%emt 0:00:00]} c5 {[%emt 0:00:00]} 25. Be2 {[%emt 0:00:00]} Bxe2 {[%emt 0:00:00]} 26. Nxe2 {[%emt 0:00:00]} cxd4 {[%emt 0:00:00]} 27. e6 {[%emt 0:00:00]} Ne5 {[%emt 0:00:00]} 28. Nxd4 {[%emt 0:00:00]} Qf6 {[%emt 0:00:00]} 29. Kg2 {[%emt 0:00:00]} Nc4 {[%emt 0:00:00]} 30. Rxc4 {[%emt 0:00:00]} Qf1# {[%emt 0:00:00]} 0-1

[Event "4NCL 2019-20"]
[Site "Daventry"]
[Date "2020.02.08"]
[Round "5"]
[White "Weller, Jean-Luc"]
[Black "Pedersen, Carsten"]
[Result "1/2-1/2"]
[ECO "E33"]
[WhiteElo "2230"]
[BlackElo "2073"]
[Annotator "ChessBase"]
[PlyCount "67"]
[EventDate "2020.01.11"]
[EventCountry "ENG"]
[SourceTitle "playchess.com"]
[Source "ChessBase"]
[SourceQuality "1"]
[TimeControl "40/6000:3000+30"]

1. d4 {[%emt 0:00:00]} Nf6 {[%emt 0:00:00]} 2. c4 {[%emt 0:00:00]} e6 {[%emt 0:00:00]} 3. Nc3 {[%emt 0:00:00]} Bb4 {[%emt 0:00:00]} 4. Qc2 {[%emt 0:00:00]} Nc6 {[%emt 0:00:00]} 5. Nf3 {[%emt 0:00:00]} d6 {[%emt 0:00:00]} 6. Bd2 {[%emt 0:00:28]} O-O {[%emt 0:00:00]} 7. a3 {[%emt 0:00:16]} Bxc3 {[%emt 0:00:00]} 8. Bxc3 {[%emt 0:00:00]} Qe7 {[%emt 0:00:00]} 9. e3 {[%emt 0:14:15]} e5 {[%emt 0:00:00]} 10. Be2 {[%emt 0:28:19]} Bg4 {[%emt 0:23:29]} 11. O-O {[%emt 0:00:00]} Rfe8 {[%emt 0:17:55]} 12. b4 {[%emt 0:00:00]} e4 {[%emt 0:01:57]} 13. Ne1 {[%emt 0:00:00]} Bxe2 {[%emt 0:00:12]} 14. Qxe2 {[%emt 0:00:00]} d5 {[%emt 0:00:08]} 15. b5 {[%emt 0:04:38]} Nd8 {[%emt 0:00:00]} 16. Nc2 {[%emt 0:15:36]} dxc4 {[%emt 0:16:07]} 17. Qxc4 {[%emt 0:00:39]} Qe6 {[%emt 0:01:40]} 18. Qxe6 {[%emt 0:01:56]} Nxe6 {[%emt 0:00:00]} 19. f3 {[%emt 0:00:03]} a5 {[%emt 0:18:24]} 20. Be1 {[%emt 0:02:56]} Nf8 {[%emt 0:03:57]} 21. Bg3 {[%emt 0:08:18]} Rac8 {[%emt 0:13:10]} 22. a4 {[%emt 0:10:23]} N8d7 23. Na3 {[%emt 0:05:50]} Nb6 {[%emt 0:01:21]} 24. Be5 {[%emt 0:00:14]} Nfd7 {[%emt 0:00:36]} 25. Bf4 {[%emt 0:00:00]} f6 26. Rac1 {[%emt 0:00:00]} c5 27. Nc4 {[%emt 0:01:38]} Nxc4 28. Rxc4 {[%emt 0:03:38]} exf3 {[%emt 0:00:00]} 29. Rxf3 {[%emt 0:00:48]} cxd4 {[%emt 0:00:00]} 30. Rxd4 {[%emt 0:00:00]} Nc5 {[%emt 0:00:00]} 31. h4 {[%emt 0:00:00]} Ne6 {[%emt 0:00:00]} 32. Rd7 {[%emt 0:00:00]} Nc5 {[%emt 0:00:00]} 33. Rd4 {[%emt 0:00:00]} Ne6 {[%emt 0:00:00]} 34. Rd7 {[%emt 0:00:00]} 1/2-1/2

[Event "4NCL 2019-20"]
[Site "Daventry"]
[Date "2020.02.08"]
[Round "5"]
[White "Hill, Alistair"]
[Black "Tan, Justin"]
[Result "1/2-1/2"]
[ECO "A13"]
[WhiteElo "2217"]
[BlackElo "2511"]
[Annotator "ChessBase"]
[PlyCount "101"]
[EventDate "2020.01.11"]
[EventCountry "ENG"]
[SourceTitle "playchess.com"]
[Source "ChessBase"]
[SourceQuality "1"]
[TimeControl "40/6000:3000+30"]

1. Nf3 {[%emt 0:00:00]} d5 {[%emt 0:06:51]} 2. c4 {[%emt 0:00:00]} e6 {[%emt 0:00:00]} 3. g3 {[%emt 0:00:00]} dxc4 {[%emt 0:01:57]} 4. Bg2 {[%emt 0:00:00]} Nf6 {[%emt 0:01:09]} 5. O-O {[%emt 0:00:00]} a6 {[%emt 0:01:06]} 6. Qc2 {[%emt 0:03:47]} b5 {[%emt 0:02:31]} 7. Rd1 {[%emt 0:06:29]} Bb7 {[%emt 0:03:40]} 8. d3 {[%emt 0:00:00]} cxd3 {[%emt 0:00:00]} 9. Rxd3 {[%emt 0:00:00]} Bd6 {[%emt 0:00:00]} 10. Ne5 {[%emt 0:08:24]} Bxg2 {[%emt 0:00:00]} 11. Kxg2 {[%emt 0:00:00]} O-O {[%emt 0:03:26]} 12. Rd1 {[%emt 0:07:08]} Qe8 {[%emt 0:02:02]} 13. Nf3 {[%emt 0:00:46]} Qc6 {[%emt 0:00:07]} 14. Qxc6 {[%emt 0:02:06]} Nxc6 {[%emt 0:00:00]} 15. Nc3 {[%emt 0:00:29]} Rfd8 {[%emt 0:02:11]} 16. Bg5 {[%emt 0:00:00]} h6 {[%emt 0:07:45]} 17. Bxf6 {[%emt 0:00:06]} gxf6 {[%emt 0:00:00]} 18. Rac1 {[%emt 0:02:19]} f5 {[%emt 0:11:53]} 19. e4 {[%emt 0:15:18]} fxe4 {[%emt 0:05:15]} 20. Nxe4 {[%emt 0:00:00]} Nb4 {[%emt 0:00:00]} 21. a4 {[%emt 0:06:24]} Nd5 {[%emt 0:03:25]} 22. Nd4 {[%emt 0:03:36]} b4 {[%emt 0:09:28]} 23. Nc6 {[%emt 0:00:37]} Re8 {[%emt 0:00:17]} 24. Rc2 {[%emt 0:13:47]} Bf8 {[%emt 0:00:32]} 25. a5 {[%emt 0:07:32]} Kg7 {[%emt 0:08:31]} 26. Kf3 {[%emt 0:01:29]} Bd6 {[%emt 0:00:42]} 27. Rc4 {[%emt 0:00:52]} Rec8 {[%emt 0:03:00]} 28. Nc5 {[%emt 0:02:21]} h5 {[%emt 0:01:07]} 29. Nd3 {[%emt 0:00:23]} b3 {[%emt 0:00:47]} 30. Nc1 {[%emt 0:00:09]} Ne7 {[%emt 0:00:08]} 31. Rd3 {[%emt 0:01:39]} Nxc6 {[%emt 0:02:39]} 32. Rxc6 {[%emt 0:00:00]} Rcb8 {[%emt 0:01:52]} 33. Rxb3 {[%emt 0:03:49]} Rxb3+ {[%emt 0:01:41]} 34. Nxb3 {[%emt 0:00:00]} Rb8 {[%emt 0:00:00]} 35. Nc5 {[%emt 0:00:00]} Rxb2 {[%emt 0:00:00]} 36. Nxa6 {[%emt 0:00:00]} Ra2 {[%emt 0:00:28]} 37. Nxc7 {[%emt 0:00:00]} Be5 {[%emt 0:00:00]} 38. Nb5 {[%emt 0:00:34]} Rxa5 {[%emt 0:00:00]} 39. Nd6 {[%emt 0:02:22]} Ra2 {[%emt 0:02:39]} 40. Nc4 {[%emt 0:00:00]} Bd4 {[%emt 0:00:00]} 41. Ne3 {[%emt 0:49:42]} Kg6 {[%emt 0:50:20]} 42. Rc2 {[%emt 0:03:31]} Ra3 {[%emt 0:00:36]} 43. Ke4 {[%emt 0:01:56]} Ba7 {[%emt 0:01:07]} 44. Nc4 {[%emt 0:01:14]} Ra4 {[%emt 0:00:01]} 45. Kf3 {[%emt 0:00:21]} Bd4 {[%emt 0:00:35]} 46. Kg2 {[%emt 0:01:18]} f6 {[%emt 0:00:35]} 47. Nd2 {[%emt 0:00:25]} Ra3 {[%emt 0:00:34]} 48. Nf3 {[%emt 0:00:00]} Bc3 {[%emt 0:00:00]} 49. Re2 {[%emt 0:00:00]} Ra6 {[%emt 0:00:00]} 50. Rc2 {[%emt 0:00:00]} Ra3 {[%emt 0:00:00]} 51. Re2 {[%emt 0:00:00]} 1/2-1/2

[Event "4NCL 2019-20"]
[Site "Daventry"]
[Date "2020.02.08"]
[Round "5"]
[White "Townsend, M Paul"]
[Black "Zulfic, Fedja"]
[Result "1/2-1/2"]
[ECO "A37"]
[WhiteElo "2217"]
[BlackElo "2156"]
[Annotator "ChessBase"]
[PlyCount "81"]
[EventDate "2020.01.11"]
[EventCountry "ENG"]
[SourceTitle "playchess.com"]
[Source "ChessBase"]
[SourceQuality "1"]
[TimeControl "40/6000:3000+30"]

1. Nf3 {[%emt 0:00:00]} g6 {[%emt 0:00:00]} 2. c4 {[%emt 0:00:00]} c5 {[%emt 0:03:29]} 3. g3 {[%emt 0:02:20]} Bg7 {[%emt 0:00:00]} 4. Bg2 {[%emt 0:00:00]} Nc6 {[%emt 0:00:13]} 5. Nc3 {[%emt 0:00:00]} e6 {[%emt 0:10:00]} 6. d3 {[%emt 0:01:04]} d5 {[%emt 0:02:41]} 7. Bg5 {[%emt 0:06:18]} f6 {[%emt 0:02:37]} 8. cxd5 {[%emt 0:06:21]} exd5 {[%emt 0:09:45]} 9. Bd2 Nge7 {[%emt 0:10:14]} 10. O-O {[%emt 0:03:39]} Be6 {[%emt 0:23:09]} 11. e4 {[%emt 0:15:01]} Qd7 {[%emt 0:00:00]} 12. exd5 {[%emt 0:45:45]} Nxd5 {[%emt 0:00:00]} 13. Qa4 {[%emt 0:00:00]} O-O {[%emt 0:00:00]} 14. Rad1 {[%emt 0:02:23]} Ndb4 {[%emt 0:06:12]} 15. Be3 {[%emt 0:04:42]} Nxd3 {[%emt 0:09:40]} 16. Qa3 {[%emt 0:02:45]} c4 {[%emt 0:03:50]} 17. b3 {[%emt 0:01:30]} Rfd8 {[%emt 0:04:22]} 18. bxc4 {[%emt 0:01:35]} Bxc4 {[%emt 0:00:00]} 19. Ne4 {[%emt 0:00:42]} Qe7 {[%emt 0:05:01]} 20. Qxe7 {[%emt 0:00:25]} Nxe7 {[%emt 0:00:00]} 21. Rb1 {[%emt 0:04:00]} Nf5 {[%emt 0:01:11]} 22. Nfd2 {[%emt 0:00:08]} Bxa2 {[%emt 0:02:44]} 23. Rxb7 {[%emt 0:00:00]} Nxe3 {[%emt 0:03:46]} 24. fxe3 {[%emt 0:00:00]} f5 {[%emt 0:00:33]} 25. Ng5 {[%emt 0:00:00]} Nc5 {[%emt 0:00:00]} 26. Rc7 {[%emt 0:00:00]} Bd5 {[%emt 0:00:00]} 27. Ngf3 {[%emt 0:00:11]} Bh6 {[%emt 0:00:00]} 28. Kf2 {[%emt 0:00:00]} Nd3+ {[%emt 0:00:00]} 29. Ke2 {[%emt 0:00:00]} Be4 {[%emt 0:00:00]} 30. Nxe4 {[%emt 0:00:00]} fxe4 {[%emt 0:00:00]} 31. Nd2 {[%emt 0:00:00]} Rac8 {[%emt 0:00:00]} 32. Rxc8 {[%emt 0:00:00]} Rxc8 {[%emt 0:00:00]} 33. Bxe4 {[%emt 0:00:36]} Ne5 {[%emt 0:00:00]} 34. Rb1 {[%emt 0:00:00]} Ng4 {[%emt 0:00:00]} 35. Nf1 {[%emt 0:00:00]} Rf8 {[%emt 0:00:00]} 36. h3 {[%emt 0:00:03]} Nf6 {[%emt 0:00:00]} 37. Bd3 {[%emt 0:00:00]} Kh8 {[%emt 0:00:00]} 38. Rb7 {[%emt 0:00:00]} Nd5 {[%emt 0:00:01]} 39. Rxa7 {[%emt 0:00:00]} Nxe3 {[%emt 0:00:00]} 40. Nxe3 {[%emt 0:00:00]} Re8 {[%emt 0:00:00]} 41. Ra3 {[%emt 0:02:39]} 1/2-1/2

[Event "4NCL 2019-20"]
[Site "Daventry"]
[Date "2020.02.08"]
[Round "5"]
[White "McClement, Andrew"]
[Black "McPhillips, Joseph"]
[Result "1-0"]
[ECO "A26"]
[WhiteElo "2215"]
[BlackElo "2434"]
[Annotator "NA"]
[PlyCount "79"]
[EventDate "2020.01.11"]
[EventCountry "ENG"]
[SourceTitle "playchess.com"]
[Source "ChessBase"]
[SourceQuality "1"]
[TimeControl "40/6000:3000+30"]

1. Nf3 {[%emt 0:00:00]} Nf6 {[%emt 0:02:40]} 2. c4 {[%emt 0:00:00]} g6 {[%emt 0:00:00]} 3. g3 {[%emt 0:00:00]} Bg7 {[%emt 0:00:00]} 4. Bg2 {[%emt 0:00:00]} O-O {[%emt 0:00:00]} 5. O-O {[%emt 0:00:00]} d6 {[%emt 0:00:00]} 6. Nc3 {[%emt 0:00:00]} e5 {[%emt 0:00:00]} 7. d3 {[%emt 0:00:00]} Nc6 {[%emt 0:00:00]} 8. Rb1 {[%emt 0:00:00]} a5 {[%emt 0:00:00]} 9. a3 {[%emt 0:00:00]} Re8 {[%emt 0:00:00]} 10. Bg5 {[%emt 0:00:00]} h6 {[%emt 0:00:00]} 11. Bxf6 {[%emt 0:00:00]} Bxf6 {[%emt 0:00:00]} 12. b4 {[%emt 0:00:00]} axb4 {[%emt 0:00:00]} 13. axb4 {[%emt 0:00:00]} Bg7 {[%emt 0:00:00]} 14. b5 {[%emt 0:00:00]} Ne7 {[%emt 0:00:00]} 15. Qb3 {[%emt 0:00:00]} Be6 {[%emt 0:00:00]} 16. Nd2 {[%emt 0:00:00]} c6 {[%emt 0:00:00]} 17. Ra1 {[%emt 0:01:21] A26: English Opening vs King's Indian with ...Nc6 and d3.} Rxa1 {[%emt 0:00:00]} 18. Rxa1 {[%emt 0:00:00]} d5 {[%emt 0:00:00]} 19. bxc6 {[%emt 0:00:49]} bxc6 {[%emt 0:00:00] [#]} 20. Ra7 $146 {[%emt 0:00:35] [#]} (20. Rc1 $11 {remains equal.}) ({Predecessor:} 20. Ra6 e4 21. dxe4 dxc4 22. Qc2 Qd4 23. Ndb1 Rb8 24. Bf1 Rb3 25. Nd1 c3 26. e3 {0-1 (41) Berg,K (2375)-Hebden,M Silkeborg 1983}) 20... e4 $1 {[%emt 0:00:00]} 21. cxd5 {[%emt 0:02:42]} cxd5 {[%emt 0:00:00]} 22. Nb5 {[%emt 0:04:25] [#]} e3 $1 {[%emt 0:05:48]} 23. fxe3 {[%emt 0:04:48]} Qb6 {[%emt 0:00:00]} 24. d4 $17 {[%emt 0:04:45]} Nf5 {[%emt 0:09:03]} 25. Bxd5 {[%emt 0:51:07]} Rb8 {[%emt 0:04:51]} 26. Bxe6 {[%emt 0:01:52]} fxe6 {[%emt 0:00:00]} 27. Rc7 {[%emt 0:02:57]} Qa6 {[%emt 0:39:59]} 28. Rc5 {[%emt 0:00:31]} Nxd4 {[%emt 0:01:31]} 29. exd4 {[%emt 0:00:33]} Bxd4+ {[%emt 0:00:07]} 30. Nxd4 {[%emt 0:00:00]} Rxb3 {[%emt 0:01:46]} 31. N2xb3 {[%emt 0:00:00]} Qa2 {[%emt 0:00:00]} 32. Re5 {[%emt 0:00:00]} Kf7 {[%emt 0:00:32]} 33. Rxe6 {[%emt 0:00:00]} h5 {[%emt 0:00:00]} 34. Re3 {[%emt 0:00:00]} g5 {[%emt 0:00:00]} 35. Re5 {[%emt 0:06:00]} Kf6 {[%emt 0:00:00]} 36. Re6+ {[%emt 0:00:00]} Kg7 {[%emt 0:00:38]} 37. Nf5+ {[%emt 0:00:03]} Kf7 {[%emt 0:00:00]} 38. Nbd4 {[%emt 0:00:30]} h4 {[%emt 0:00:00]} 39. gxh4 {[%emt 0:00:50]} gxh4 {[%emt 0:00:00]} 40. Rh6 {[%emt 0:00:00]} 1-0

[Event "4NCL 2019-20"]
[Site "Daventry"]
[Date "2020.02.08"]
[Round "5"]
[White "Dong, Bao Nghia"]
[Black "Kanyamarala, Trisha"]
[Result "1/2-1/2"]
[ECO "A70"]
[WhiteElo "2209"]
[BlackElo "2299"]
[Annotator "ChessBase"]
[PlyCount "91"]
[EventDate "2020.01.11"]
[EventCountry "ENG"]
[SourceTitle "playchess.com"]
[Source "ChessBase"]
[SourceQuality "1"]
[TimeControl "40/6000:3000+30"]

1. d4 {[%emt 0:00:10]} Nf6 {[%emt 0:00:00]} 2. h3 {[%emt 0:00:00]} d5 {[%emt 0:00:42]} 3. c4 {[%emt 0:00:00]} e6 {[%emt 0:04:21]} 4. Bg5 {[%emt 0:00:00]} Bb4+ {[%emt 0:04:45]} 5. Nc3 {[%emt 0:00:00]} h6 {[%emt 0:04:25]} 6. Bxf6 {[%emt 0:00:00]} Qxf6 {[%emt 0:00:00]} 7. e3 {[%emt 0:00:04]} dxc4 {[%emt 0:13:50]} 8. Bxc4 {[%emt 0:00:06]} c5 {[%emt 0:02:55]} 9. Nge2 {[%emt 0:00:36]} cxd4 {[%emt 0:04:47]} 10. Bb5+ {[%emt 0:03:40]} Bd7 11. Bxd7+ {[%emt 0:00:05]} Nxd7 {[%emt 0:05:13]} 12. exd4 {[%emt 0:00:00]} Nb6 {[%emt 0:05:41]} 13. Qb3 {[%emt 0:00:59]} Qe7 {[%emt 0:02:48]} 14. O-O {[%emt 0:00:15]} O-O {[%emt 0:02:26]} 15. Nf4 Bd6 {[%emt 0:00:00]} 16. Nd3 Rfd8 {[%emt 0:00:00]} 17. Rfe1 Qf6 {[%emt 0:00:00]} 18. Re4 Rac8 {[%emt 0:00:00]} 19. a4 Rd7 {[%emt 0:00:00]} 20. Rae1 Bb8 {[%emt 0:00:00]} 21. a5 Nc4 {[%emt 0:00:00]} 22. d5 Nd2 {[%emt 0:00:00]} 23. Qb5 Nxe4 {[%emt 0:00:00]} 24. Qxd7 Rd8 {[%emt 0:00:00]} 25. Nxe4 Rxd7 {[%emt 0:00:00]} 26. Nxf6+ gxf6 {[%emt 0:00:00]} 27. dxe6 fxe6 {[%emt 0:00:00]} 28. Nc5 Rd2 {[%emt 0:00:00]} 29. b4 Rb2 {[%emt 0:00:00]} 30. Nd3 Rb3 {[%emt 0:00:00]} 31. Rxe6 Kf7 {[%emt 0:00:00]} 32. Re3 Rb1+ {[%emt 0:00:00]} 33. Re1 Rb3 {[%emt 0:00:00]} 34. Rd1 b6 {[%emt 0:00:00]} 35. f4 bxa5 {[%emt 0:00:00]} 36. bxa5 Ra3 {[%emt 0:00:00]} 37. Kf1 Rxa5 {[%emt 0:00:00]} 38. Rb1 Bd6 {[%emt 0:00:00]} 39. Rb7+ Ke6 {[%emt 0:00:00]} 40. g4 Kd5 {[%emt 0:00:00]} 41. Rf7 Ra1+ {[%emt 0:50:30]} 42. Ke2 Ra2+ {[%emt 0:00:30]} 43. Kf3 Ra3 {[%emt 0:00:30]} 44. Ke2 Ra2+ {[%emt 0:00:30]} 45. Kf3 Ra3 {[%emt 0:00:30]} 46. Ke2 1/2-1/2

[Event "4NCL 2019-20"]
[Site "Daventry"]
[Date "2020.02.08"]
[Round "5"]
[White "Stewart, Ashley"]
[Black "Harvey, Marcus R"]
[Result "0-1"]
[ECO "A13"]
[WhiteElo "2152"]
[BlackElo "2419"]
[Annotator "ChessBase"]
[PlyCount "104"]
[EventDate "2020.01.11"]
[EventCountry "ENG"]
[SourceTitle "playchess.com"]
[Source "ChessBase"]
[SourceQuality "1"]
[TimeControl "40/6000:3000+30"]

1. c4 {[%emt 0:00:00]} e6 {[%emt 0:08:28]} 2. g3 {[%emt 0:00:00]} d5 {[%emt 0:00:00]} 3. Bg2 {[%emt 0:00:00]} dxc4 {[%emt 0:02:29]} 4. Qa4+ {[%emt 0:00:00]} Nd7 {[%emt 0:00:00]} 5. Qxc4 {[%emt 0:00:00]} c5 {[%emt 0:00:09]} 6. Qb3 {[%emt 0:01:29]} Bd6 {[%emt 0:07:34]} 7. Nf3 {[%emt 0:00:48]} e5 {[%emt 0:03:18]} 8. d3 {[%emt 0:00:09]} Ngf6 {[%emt 0:01:50]} 9. a4 {[%emt 0:05:13]} O-O {[%emt 0:00:03]} 10. Na3 {[%emt 0:03:20]} h6 {[%emt 0:01:03]} 11. O-O {[%emt 0:02:55]} Re8 {[%emt 0:01:05]} 12. Nd2 {[%emt 0:06:03]} Nf8 {[%emt 0:01:13]} 13. Ndc4 {[%emt 0:01:13]} Ne6 {[%emt 0:09:37]} 14. e3 {[%emt 0:06:25]} Bc7 {[%emt 0:18:48]} 15. Nb5 {[%emt 0:00:12]} Qe7 {[%emt 0:09:30]} 16. Bd2 {[%emt 0:07:25]} Rd8 {[%emt 0:01:11]} 17. Rfd1 {[%emt 0:06:08]} Bb8 {[%emt 0:05:07]} 18. a5 {[%emt 0:13:32]} Ng5 {[%emt 0:00:00]} 19. a6 {[%emt 0:07:16]} e4 {[%emt 0:00:57]} 20. dxe4 {[%emt 0:02:42]} Nfxe4 {[%emt 0:03:45]} 21. Ba5 {[%emt 0:04:58]} b6 {[%emt 0:00:00]} 22. Rxd8+ {[%emt 0:09:16]} Qxd8 {[%emt 0:00:00]} 23. Be1 {[%emt 0:00:00]} Bg4 {[%emt 0:00:54]} 24. Nc3 {[%emt 0:02:20]} Qd3 {[%emt 0:02:50]} 25. Rd1 {[%emt 0:12:48]} Bxd1 {[%emt 0:00:35]} 26. Qxd1 {[%emt 0:00:00]} Qxd1 {[%emt 0:04:26]} 27. Nxd1 {[%emt 0:00:00]} Bc7 {[%emt 0:00:00]} 28. Nc3 {[%emt 0:00:22]} Re8 {[%emt 0:00:00]} 29. Nb5 {[%emt 0:00:51]} Bb8 {[%emt 0:00:00]} 30. h4 {[%emt 0:00:38]} Nh7 {[%emt 0:00:00]} 31. b4 {[%emt 0:01:09]} cxb4 {[%emt 0:00:28]} 32. Bxb4 {[%emt 0:00:00]} Nc5 {[%emt 0:00:47]} 33. Ncd6 {[%emt 0:00:07]} Bxd6 {[%emt 0:00:00]} 34. Nxd6 {[%emt 0:00:00]} Re6 {[%emt 0:02:09]} 35. Nc8 {[%emt 0:00:07]} Nxa6 {[%emt 0:00:00]} 36. Bc3 {[%emt 0:00:00]} Nf6 {[%emt 0:01:23]} 37. Nxa7 {[%emt 0:00:15]} Nc5 {[%emt 0:00:57]} 38. Nb5 {[%emt 0:01:27]} Nfe4 {[%emt 0:00:00]} 39. Bd4 {[%emt 0:00:00]} Re8 {[%emt 0:01:41]} 40. Bf3 {[%emt 0:00:16]} Rd8 {[%emt 0:04:40]} 41. Kg2 {[%emt 0:04:19]} Nd6 {[%emt 0:01:09]} 42. Nc3 {[%emt 0:03:12]} Nf5 {[%emt 0:00:34]} 43. Be5 {[%emt 0:01:52]} Nd3 {[%emt 0:00:08]} 44. Be4 {[%emt 0:03:26]} Nxh4+ {[%emt 0:00:55]} 45. gxh4 {[%emt 0:00:42]} Nxe5 {[%emt 0:00:07]} 46. Nb5 {[%emt 0:00:41]} Rd2 {[%emt 0:00:20]} 47. Kg3 {[%emt 0:00:20]} Nd3 {[%emt 0:00:07]} 48. f4 {[%emt 0:01:08]} Nc5 {[%emt 0:00:25]} 49. Bc6 {[%emt 0:01:04]} g6 {[%emt 0:00:29]} 50. Nd4 {[%emt 0:00:29]} Ne6 {[%emt 0:00:18]} 51. Nb5 {[%emt 0:00:25]} Ng7 {[%emt 0:00:18]} 52. e4 {[%emt 0:00:20]} Rd3+ {[%emt 0:00:07]} 0-1

[Event "4NCL 2019-20"]
[Site "Daventry"]
[Date "2020.02.08"]
[Round "5"]
[White "Bremner, Adam"]
[Black "Thorarinsson, Pall A."]
[Result "1-0"]
[ECO "A89"]
[WhiteElo "2148"]
[BlackElo "2185"]
[Annotator "ChessBase"]
[PlyCount "41"]
[EventDate "2020.01.11"]
[EventCountry "ENG"]
[SourceTitle "playchess.com"]
[Source "ChessBase"]
[SourceQuality "1"]
[TimeControl "40/6000:3000+30"]

1. d4 g6 2. Nf3 {[%emt 0:00:16]} Bg7 {[%emt 0:00:27]} 3. g3 {[%emt 0:02:13]} f5 {[%emt 0:03:09]} 4. Bg2 {[%emt 0:00:08]} Nf6 {[%emt 0:00:22]} 5. O-O {[%emt 0:00:09]} O-O {[%emt 0:00:27]} 6. c4 {[%emt 0:00:39]} d6 {[%emt 0:01:04]} 7. Nc3 {[%emt 0:00:07]} Nc6 {[%emt 0:14:51]} 8. d5 {[%emt 0:00:17]} Ne5 {[%emt 0:00:09]} 9. Nxe5 {[%emt 0:00:07]} dxe5 {[%emt 0:00:04]} 10. c5 {[%emt 0:00:55]} b6 {[%emt 0:34:13]} 11. b4 a5 12. d6 {[%emt 0:07:53]} e4 {[%emt 0:02:34]} 13. Bf4 axb4 14. Nd5 exd6 15. cxb6 cxb6 16. Rc1 Ra5 17. Rxc8 Rxd5 18. Rxd8 Rxd8 19. Qb3 Kh8 20. Bg5 Rd4 21. Qb2 1-0

[Event "4NCL 2019-20"]
[Site "Daventry"]
[Date "2020.02.08"]
[Round "5"]
[White "Murray, David"]
[Black "Makkar, Rajat"]
[Result "1-0"]
[ECO "C24"]
[WhiteElo "2145"]
[BlackElo "2179"]
[Annotator "ChessBase"]
[PlyCount "81"]
[EventDate "2020.01.11"]
[EventCountry "ENG"]
[SourceTitle "playchess.com"]
[Source "ChessBase"]
[SourceQuality "1"]
[TimeControl "40/6000:3000+30"]

1. e4 {[%emt 0:00:00]} e5 {[%emt 0:00:00]} 2. Bc4 {[%emt 0:00:00]} Nf6 {[%emt 0:00:00]} 3. d3 {[%emt 0:00:00]} c6 {[%emt 0:00:00]} 4. Qe2 {[%emt 0:00:56]} Bb4+ {[%emt 0:03:30]} 5. c3 {[%emt 0:01:30]} Be7 {[%emt 0:01:15]} 6. Nf3 {[%emt 0:01:38]} d6 {[%emt 0:00:52]} 7. d4 {[%emt 0:03:08]} exd4 {[%emt 0:00:53]} 8. cxd4 {[%emt 0:00:42]} Nxe4 {[%emt 0:07:01]} 9. Qxe4 {[%emt 0:00:10]} d5 {[%emt 0:00:18]} 10. Qe5 {[%emt 0:02:24]} dxc4 {[%emt 0:02:34]} 11. Qxg7 {[%emt 0:03:01]} Bf6 {[%emt 0:00:53]} 12. Qh6 {[%emt 0:04:54]} Qe7+ 13. Be3 {[%emt 0:04:30]} Bf5 {[%emt 0:08:24]} 14. O-O {[%emt 0:04:33]} Nd7 {[%emt 0:01:28]} 15. Nc3 {[%emt 0:02:57]} Rg8 {[%emt 0:04:30]} 16. Rfe1 O-O-O 17. d5 Bxc3 18. bxc3 Be4 19. Bg5 f6 20. dxc6 Nc5 21. Qh3+ Kb8 22. Bf4+ Ka8 23. Bg3 Qf7 24. c7 Rd7 25. Nd4 f5 26. f3 f4 27. Bh4 Bd5 28. Re7 Be6 29. Rxe6 Nxe6 30. Nxe6 Rd2 31. Re1 a6 32. Bd8 Qd7 33. Ng5 Rxd8 34. Qxd7 R2xd7 35. cxd8=Q+ Rxd8 36. Ne4 b5 37. Re2 Rd3 38. Rd2 Re3 39. Kf2 a5 40. g3 b4 {[%emt 0:00:00]} 41. gxf4 1-0